Cogmind - Beta 11.1 @@@ ROGUE MODE // 2022.05.05 @ 11:01:39 Player: ktur Result: Destroyed by G-34 Mercenary with Small Laser Performance ------------- Evolutions (0) 0 Regions Visited (2) 400 Robots Destroyed (36) 180 Value Destroyed (864) 864 Prototype IDs (2) 40 Alien Tech Used (0) 0 Bonus (0) 0 TOTAL SCORE: 1484 Bonus ------- None Cogmind --------- Core Integrity 0/250 Matter 288/300 Energy 158/160 System Corruption 0% Temperature Cool (72) Movement Treading (240) Ox1 Location -10/Mines Parts ------- > --- POWER (1) -------- Light Nuclear Core > --- PROPULSION (2) --- Improved Treads Improved Treads > --- UTILITY (2) ------ High-capacity Storage Unit Visual Processing Unit > --- WEAPON (2) ------- Particle Cannon Light Assault Rifle > --- INVENTORY (20) --- Light Nuclear Core Improved Treads Compact Wheel Hover Unit Hover Unit Cooling System High-capacity Storage Unit High-capacity Matter Pod (200) ECM Suite Hacking Suite Hacking Suite Particle Cannon Grenade Launcher Grenade Launcher Datajack Peak State ------------ > --- POWER ------------ Light Nuclear Core > --- PROPULSION ------- Improved Treads Improved Treads > --- UTILITY ---------- High-capacity Storage Unit Visual Processing Unit > --- WEAPON ----------- Particle Cannon Light Assault Rifle > --- INVENTORY -------- Light Nuclear Core Improved Treads Compact Wheel Hover Unit Hover Unit Cooling System High-capacity Storage Unit High-capacity Matter Pod ECM Suite Hacking Suite Hacking Suite Particle Cannon Grenade Launcher Grenade Launcher Datajack [Rating: 15] Favorites ----------- Power Light Ion Engine Engine Light Ion Engine Power Core Light Nuclear Core Propulsion Light Treads Treads Light Treads Utility Visual Processing Unit Storage High-capacity Storage Unit Processor Visual Processing Unit Weapon Light Assault Rifle Energy Cannon Particle Cannon Ballistic Gun Light Assault Rifle Launcher Grenade Launcher Build | -11 -10 -10 ------- Run | Scr Mat Min Slots Evolved . | . . . Power . | . . . Propulsion . | . . . Utility . | . . . Weapon . | . . . Parts Attached 29 | 5 14 10 Power 5 | 1 2 2 Engine 4 | 1 2 1 Core 1 | . . 1 Reactor . | . . . Propulsion 7 | 1 3 3 Treads 7 | 1 3 3 Leg . | . . . Wheel . | . . . Hover . | . . . Flight . | . . . Utility 4 | 1 3 . Device . | . . . Storage 3 | 1 2 . Processor 1 | . 1 . Hackware . | . . . Protection . | . . . Artifact . | . . . Weapon 13 | 2 6 5 Energy Gun . | . . . Energy Cannon 1 | . . 1 Ballistic Gun 9 | 2 5 2 Ballistic Cannon . | . . . Launcher 3 | . 1 2 Special Weapon . | . . . Impact Weapon . | . . . Slashing Weapon . | . . . Piercing Weapon . | . . . Special Melee Weapon . | . . . Unidentified Prototypes . | . . . Parts Lost 11 | . 4 7 Power 3 | . 1 2 Propulsion 4 | . 1 3 Utility . | . . . Weapon 4 | . 2 2 Highest Loss Streak 4 | . 4 3 To Critical Strikes . | . . . Average Slot Usage (%) 96 | . 94 98 Engine 12 | . 13 10 Core 1 | . . 2 Treads 26 | . 26 27 Storage 14 | . 14 14 Processor 12 | . 11 14 Ballistic Gun 27 | . 27 27 Naked Turns . | . . . Heaviest Build 47 | 12 47 47 Greatest Support 46 | 20 43 46 Greatest Overweight (x) 2 | 1 2 1 Average Overweight (x) . | . . . Largest Inventory Capacity 20 | 8 20 20 Average Capacity 17 | 7 15 20 Most Carried 20 | 7 20 20 Average Carried 15 | 3 14 18 Final Capacity 20 | 8 20 20 Final Carried 20 | 7 20 15 Class Distribution -------------------- 100% | Mutant Dominant Class ---------------- Mutant | -10/Materials Mutant | -10/Mines Resources | -11 -10 -10 ----------- Run | Scr Mat Min Matter Collected 1079 | 234 530 315 Remotely . | . . . Salvage Created 1046 | . 523 523 Parts 77 | . 42 35 Haulers Intercepted 1 | . 1 . Recyclers Shooed 1 | . 1 . Parts Field Recycled . | . . . Retrieved Matter . | . . . Parts Self-Destructed . | . . . Prevented . | . . . Kills | -11 -10 -10 ------- Run | Scr Mat Min Combat Hostiles Destroyed 29 | . 15 14 Guns 21 | . 13 8 AOE 8 | . 2 6 Classes Destroyed 7 | . 7 . Worker 1 | . 1 . Tunneler 2 | . 1 1 Hauler 1 | . 1 . Recycler 1 | . 1 . Operator 2 | . 2 . Swarmer 9 | . 9 . Grunt 20 | . 6 14 Best Kill Streak 4 | . 3 4 Combat Bots Only 4 | . 3 4 Max Kills in Single Turn 2 | . 2 2 Gunslinging . | . . . Exploded 2 | . 2 2 Melee . | . . . Uniques/NPCs Destroyed . | . . . Combat | -11 -10 -10 -------- Run | Scr Mat Min Damage Taken 1685 | . 625 1060 Core 260 | . 65 195 Absorbed by Shields . | . . . Regen/Repaired (Parts) 72 | . 72 . Core Remaining (%) 100 | 100 . . Volleys Fired 124 | . 64 60 Largest 2 | . 2 2 Hottest 88 | . 40 88 Shots Fired 218 | . 109 109 Gun 209 | . 107 102 Cannon 2 | . . 2 Launcher 7 | . 2 5 Special . | . . . Kinetic 209 | . 107 102 Thermal 2 | . . 2 Explosive 7 | . 2 5 Electromagnetic . | . . . Robot Hit Streak 14 | . 8 14 Robot Miss Streak 5 | . 3 5 Penetration Max . | . . . Secondary Targets 2 | . 1 1 Max Gunslinging Chain 1 | . 1 1 Shots Hit Robots 138 | . 62 76 Core Hits 66 | 1 29 36 Critical Kills . | . . . Critical Parts Destroyed . | . . . Critical Strikes . | . . . Melee Attacks . | . . . Impact . | . . . Slashing . | . . . Piercing . | . . . Sneak Attacks . | . . . Combat Hostiles . | . . . Follow-up Attacks . | . . . Damage Inflicted 1929 | 6 900 1023 Guns 1366 | . 780 586 Cannons 42 | . . 42 Explosions 486 | . 96 390 Melee . | . . . Ramming 35 | 6 24 5 Kinetic 1366 | . 780 586 Thermal 42 | . . 42 Explosive 486 | . 96 390 Electromagnetic . | . . . Impact . | . . . Slashing . | . . . Piercing . | . . . Highest Corruption . | . . . Average Corruption . | . . . Corruption Purged . | . . . Corruption Blocked . | . . . Overload Shots . | . . . Overflow Damage 13 | . . 13 Projectiles . | . . . Explosions 13 | . . 13 Melee . | . . . Knockbacks . | . . . Impact . | . . . Kinetic . | . . . Secondary . | . . . Self-Inflicted Damage 116 | . 15 101 Shots 5 | . 1 4 Rammed 7 | 2 2 3 Targets Rammed 9 | 2 4 3 Kicked . | . . . Crushed 2 | . 2 . Highest Temperature 66 | . 5 66 Average Temperature 18 | . 4 19 Received Heat Transfer 879 | . 288 591 Siege Activations . | . . . Robots Corrupted . | . . . Combat Hostiles . | . . . Parts Fried . | . . . Impact Corruptions . | . . . Robots Melted . | . . . Combat Hostiles . | . . . Parts Melted . | . . . Heat Transferred 74 | . . 74 Parts Sabotaged . | . . . Parts Stolen . | . . . Parts Stripped . | . . . Power Chain Reactions . | . . . Missiles Intercepted . | . . . Alert | -11 -10 -10 ------- Run | Scr Mat Min Peak Influence 190 | . 190 190 Initial 25 | . . 25 Average 75 | . 77 76 Maximum Alert Level . | . . . Low Security (%) 100 | 100 100 100 Level 1 . | . . . Level 2 . | . . . Level 3 . | . . . Level 4 . | . . . Level 5 . | . . . High Security . | . . . Max Security . | . . . Squads Dispatched 3 | . 3 . Investigation 1 | . 1 . Extermination . | . . . Reinforcement 2 | . 2 . Assault . | . . . Garrison . | . . . Intercept . | . . . Searches Triggered . | . . . Construction Impeded . | . . . Haulers Reinforced . | . . . Active Scanning Responses . | . . . Cargo Convoy Interrupts . | . . . Stealth | -11 -10 -10 --------- Run | Scr Mat Min Distress Signals 3 | . 2 1 Communications Jammed . | . . . Distress Signals . | . . . Times Spotted 54 | . 38 16 Peak Tracking Total 5 | . 5 4 Tactical Retreats 2 | . 1 1 Traps | -11 -10 -10 ------- Run | Scr Mat Min Traps Triggered 2 | . 2 . Indirectly . | . . . Trap Hack Attempts . | . . . Triggered . | . . . Disarmed . | . . . Reprogrammed . | . . . Reused . | . . . Traps Extracted . | . . . Installed . | . . . Triggered . | . . . Machines | -11 -10 -10 ---------- Run | Scr Mat Min Machines Disabled . | . . . Max in Single Turn . | . . . Machines Sabotaged . | . . . Garrisons Compromised . | . . . Overloaded Fab Kills . | . . . Hacking | -11 -10 -10 --------- Run | Scr Mat Min Machines Accessed 8 | . 8 . Terminals 5 | . 5 . Fabricators . | . . . Repair Stations 1 | . 1 . Recycling Units 2 | . 2 . Scanalyzers . | . . . Garrison Access . | . . . Total Hacks 20 | . 20 . Successful 7 | . 7 . Failed 13 | . 13 . Catastrophic 2 | . 2 . Database Lockouts . | . . . Manual 6 | . 6 . Terminals 12 | . 12 . Fabricators . | . . . Repair Stations 5 | . 5 . Recycling Units 3 | . 3 . Scanalyzers . | . . . Garrison Access . | . . . Terminal Hacks 2 | . 2 . Robot Analysis 1 | . 1 . Prototype ID Bank 1 | . 1 . Fabricator Hacks . | . . . Repair Station Hacks 2 | . 2 . Scan Component 1 | . 1 . Repair 1 | . 1 . Recycling Unit Hacks 2 | . 2 . Retrieve Components 2 | . 2 . Scanalyzer . | . . . Garrison Access Hacks . | . . . Unauthorized Hacks 1 | . 1 . Terminals 1 | . 1 . Operators 1 | . 1 . Fabricators . | . . . Repair Stations . | . . . Recycling Units . | . . . Scanalyzers . | . . . Garrison Access . | . . . Data Cores Recovered . | . . . Used . | . . . Hacking Detections 7 | . 7 . Full Trace Events . | . . . Feedback Events . | . . . Feedback Blocked . | . . . Robot Schematics Acquired . | . . . Robots Built . | . . . Authchips . | . . . Time . | . . . Total Robot Build Rating . | . . . Part Schematics Acquired . | . . . Parts Built . | . . . Authchips . | . . . Time . | . . . Total Part Build Rating . | . . . Parts Repaired 1 | . 1 . Time 26 | . 26 . Parts Recycled . | . . . Recycled Matter . | . . . Retrieved Matter . | . . . Retrieved Components 12 | . 12 . Parts Scanalyzed . | . . . Part Schematics Acquired . | . . . Parts Damaged . | . . . Bothacking | -11 -10 -10 ------------ Run | Scr Mat Min Used RIF Installer . | . . . Robots Hacked . | . . . Non-combat . | . . . Combat . | . . . Robot Hacks Applied . | . . . Relay Couplers Released . | . . . Fabnet Peak Effective % . | . . . Robots Rewired . | . . . Allies Hacked . | . . . Hacks Repelled . | . . . Allies | -11 -10 -10 -------- Run | Scr Mat Min Total Allies . | . . . Largest Group . | . . . Highest-Rated Group . | . . . Highest-Rated Ally . | . . . Total Orders . | . . . Ally Attacks . | . . . Total Damage . | . . . Kills . | . . . Allies Corrupted . | . . . Allies Melted . | . . . Intel | -11 -10 -10 ------- Run | Scr Mat Min Robot Analysis Total 1 | . 1 . Derelict Logs Recovered 1 | . . 1 Drone Launches . | . . . Drone Recoveries . | . . . Exploration | -11 -10 -10 ------------- Run | Scr Mat Min Turns Passed 3241 | 78 1772 1391 Spaces Moved 1222 | 44 761 417 Core 9 | 9 . . Treads 1213 | 35 761 417 Legs . | . . . Wheels . | . . . Hover . | . . . Flight . | . . . Fastest Speed 50 | 50 160 160 Average Speed 208 | 139 198 234 Slowest Speed 320 | 160 320 240 Overloaded Moves . | . . . Propulsion Burnouts . | . . . Robots Hopped . | . . . Cave-ins Triggered . | . . . Exploration Rate (%) 59 | 4 98 75 Regions Visited 2 Branch Regions 1 Pre-discovered Areas 1 | . . 1 Known Exits Taken . | . . . Unknown Exits Taken 2 | 1 1 . Scrap Searched . | . . . Spaces Dug 3 | . . 3 Terrain Destroyed 42 | . 13 29 Melee . | . . . Projectile . | . . . AOE 42 | . 13 29 Terrain Rammed . | . . . Walls Destroyed . | . . . Machines Disabled . | . . . Actions | -11 -10 -10 --------- Run | Scr Mat Min Total 1706 | 57 912 737 Wait 278 | . 36 242 Move 1220 | 43 760 417 Hop . | . . . Pick Up 35 | 7 25 3 Fast Attach 12 | 5 7 . Attach 12 | . 4 8 Detach 1 | . . 1 Swap 5 | . 3 2 Drop 10 | . 9 1 Fire 124 | . 64 60 Melee . | . . . Ram . | . . . Kick . | . . . Crush 9 | 2 4 3 Escape Stasis . | . . . Rewire . | . . . Trap . | . . . Miscellaneous . | . . . Route ------- -11/Scrapyard -10/Materials (discovered 4 exits: [*Mat x3] / [*Min]) -10/Mines History --------- Turn | Location | Event 6 | -11/Scrapyard | Discovered new exit (range 16) 79 | -11/Scrapyard | Entered Materials 317 | -10/Materials | Build established: Mutant 367 | -10/Materials | Discovered new exit (range 16) 603 | -10/Materials | Discovered new exit (range 17) 725 | -10/Materials | Discovered new exit (range 10) 1090 | -10/Materials | Discovered new exit (range 17) 1196 | -10/Materials | Repaired Assault Rifle 1564 | -10/Materials | Lost 4 parts (1p1n2w) 1851 | -10/Materials | Entered Mines 2007 | -10/Mines | YI-UF0 nonchalantly dropped a Grenade Launcher on the ground 2383 | -10/Mines | Core integrity fell below 50% 2625 | -10/Mines | Excavation squad dispatched 2625 | -10/Mines | A large section of the Mines collapsed 2875 | -10/Mines | Excavation squad dispatched 2954 | -10/Mines | Core integrity fell below 20% 2982 | -10/Mines | Lost 3 parts (1p2n) 3125 | -10/Mines | Excavation squad dispatched 3146 | -10/Mines | Learned location of Mines (-9) 3242 | -10/Mines | Destroyed by G-34 Mercenary with Small Laser Last Messages --------------- 02987_ Acquired 26 matter. 02987_ U-05 Engineer lays Concrete. 02990_ Acquired 1 matter. 02995_ Acquired 10 matter. 03091_ Critical hit (Burn: +37). 03100_ G-47 Trooper destroyed. 03106_ G-34 Mercenary destroyed. 03111_ K-01 Serf collects debris. 03111_ Acquired 28 matter. 03115_ K-01 Serf collects debris. 03123_ Acquired Lgt. Nuclear Core. 03125_ ALERT: Derelict activity in mines confirmed. Dispatching additional escorted excavation squad. 03146_ Acquired derelict log, extracted data. World map updated: -9/Mines. 03203_ K-01 Serf cleans the Pulverizer. 03208_ K-01 Serf collects debris. 03217_ Lgt. Assault Rifle destroyed. 03221_ G-34 Mercenary destroyed. 03223_ Acquired 3 matter. Map ----- +----------------------------------------------------+ | ?????????????????????????????????????????????????? | | ?????????????????????????????????????????????????? | | ######???????????????????????????????????????????? | | ##??????????????????????????????????????????? | | ##??#####??????????????????????????????????? | | ## #### ##?????????????????????????????????? | | ### = ## ##????????????????????????????????? | | ?## = #??????#######???????????????????? | | ?# [! #??????# ###??###????????????? | | ?# #??????# ### ##???????????? | | ?# ### ##??????# #???????????? | | ?# ###?## ##???????# #???????????? | | ?# #????## ##????????# ##???????????? | | ?# #?????####?????????# ####????????????? | | ?# ###????????????????# ####???????????????? | | ## ##???????????????## ##?????????????????? | | # #????????????????# #####?????????????? | | # ##???????????????# ##????????????? | | # ] #####???????????## #????????????? | | ##???????????# ## #????????????? | | #???????????# ### #????????????? | | #???????????# #?## ##??????????? | | #??????## ##### ##?????????? | | ## ### #??????# =%!#?# #?????####? | | ##?# #??????????#g""""[#??# #??## #? | | ##??? #??????????#@"""" #???# #?# ?? | | #????? #??????????# """" #???# ### ??? | | # ##????####??????????# #??## ## ???? | | ## #####??????????????#### ###### ????? | | ?## ##????????????????# #?## ????? | | ??# #????????????????#%### #????? | | ?## #????????????????# ## ##??????? | | ?# ####?????#########*= ##???????? | | ?## #?# [%## #????????? | | ??#### #?????#########=## ##???????? | | ?????###### #?????????????# ## ##???#### | | ??????????# #?????????????# ### ##?## # | | ??????????# #?????????????# ###### ## ### | | ??????????# #????????????## ### | | ??????????# #????????????# #?## | | ??????????# ############## #####??# | | ??????????# #??????# | | ??????????# ##??????## | | ??????????################ ###????????### | | ?????????????????????????### #????????????### | | ???????????????????????????# #??????????????## | | ???????????????????????????# #???????????????## | | ???????????????????????????# ###########??????## | | ???????????????????????????# #???????## | | ????????????????????#####??# ######### #????????## | +----------------------------------------------------+ Best States ------------- Heat Dissipation 25 Energy Generation 14 Energy Capacity 250 Matter Stores 300 Matter Capacity 300 Sight Range 18 Terrain Scan Density 10 Evasion (%) 40 Recoil Reduction 2 Item Schematics ----------------- None Robot Schematics ------------------ None Fabricated ------------ Nothing Alien Tech Used ----------------- None Achievements -------------- None Challenges ------------ None Game ------ Seed ProcessingExplosiveRay Manual? 0 Play Time 00:14:22 Cumulative 393.1 hours Start 2022.05.05 @ 10:51:03 End 2022.05.05 @ 11:01:39 Sessions 1 Manual Loads 0 Difficulty Rogue Special Mode None Game No. 390 Rogue 390 Adventurer 0 Explorer 0 Win Type - Total 20 Types 12/2/3/2/0/0/0/1/0 Lore% 92 Gallery% 89 Achievement% 75 Wizard Run 0 Options --------- ASCII 0 Keyboard 0 Movement Arrows Keybinds 0 Fullscreen 1 Font 18/Smallcaps Map View 76x50 Tactical HUD 1 Map Filters NONE Filters NONE Steam 1 RUN: ee5f1945-09f6-4450-85a1-4a4bc8d18f3e